[Event "Queens Festival Final Team 2022"]
[Site "Tornelo"]
[Date "2022.06.26"]
[Round "5.6"]
[White "Banda Tapiwa"]
[Black "Banda Natalie Katlo"]
[Result "0-1"]
[ECO "B10"]
[WhiteElo "1213"]
[BlackElo "1629"]
[Annotator "NA RC"]
[PlyCount "74"]
[EventDate "2022.06.24"]
[EventType "team-tourn"]
[EventCountry "NET"]
[SourceTitle "playchess.com"]
[Source "ChessBase"]
[SourceQuality "1"]
[WhiteTeam "MAW"]
[BlackTeam "Botswana"]
[BlackTeamCountry "BOT"]
[TimeControl "180+2"]

1. e4 {[%emt 0:00:02]} c6 {[%emt 0:00:07]} 2. Nf3 {[%emt 0:00:02]} d5 {[%emt 0:00:02]} 3. e5 {[%emt 0:00:03]} Bg4 {[%emt 0:00:03]} 4. d4 {[%emt 0:00:02]} e6 {[%emt 0:00:10]} 5. Be2 {[%emt 0:00:01]} Bxf3 {[%emt 0:00:04]} 6. Bxf3 {[%emt 0:00:02]} Nd7 {[%emt 0:00:02]} 7. c3 {[%emt 0:00:06]} c5 {[%emt 0:00:02]} 8. Be3 {[%emt 0:00:03]} Qb6 {[%emt 0:00:05]} 9. b3 {[%emt 0:00:08]} cxd4 {[%emt 0:00:04]} 10. Bxd4 {[%emt 0:00:02]} Bc5 {[%emt 0:00:03]} 11. O-O {[%emt 0:00:10]} Bxd4 {[%emt 0:00:06]} 12. Qxd4 {[%emt 0:00:02]} Qxd4 {[%emt 0:00:06]} 13. cxd4 {[%emt 0:00:02]} Rc8 {[%emt 0:00:04]} 14. Nd2 {[%emt 0:00:08]} Ne7 {[%emt 0:00:02]} 15. Rfc1 {[%emt 0:00:09]} O-O {[%emt 0:00:12]} 16. h3 {[%emt 0:00:03]} Nf5 {[%emt 0:00:03]} 17. Rxc8 {[%emt 0:00:17]} Rxc8 {[%emt 0:00:03]} 18. Nf1 {[%emt 0:00:03]} Nxd4 {[%emt 0:00:03]} 19. Bg4 {[%emt 0:00:08]} Nxe5 {[%emt 0:00:04]} 20. Bh5 {[%emt 0:00:08]} g6 {[%emt 0:00:02]} 21. Bd1 {[%emt 0:00:09]} Nc2 {[%emt 0:00:06]} 22. Bxc2 {[%emt 0:00:02]} Rxc2 {[%emt 0:00:03]} 23. Ne3 {[%emt 0:00:03]} Rd2 {[%emt 0:00:12]} 24. Kf1 {[%emt 0:00:07]} Nd3 {[%emt 0:00:08]} 25. Ng4 {[%emt 0:00:07]} h5 {[%emt 0:00:06]} 26. Nf6+ {[%emt 0:00:03]} Kg7 {[%emt 0:00:03]} 27. Nd7 {[%emt 0:00:04]} Rxf2+ {[%emt 0:00:05]} 28. Kg1 {[%emt 0:00:02]} Re2 {[%emt 0:00:09]} 29. Kf1 {[%emt 0:00:04]} Rc2 {[%emt 0:00:14]} 30. Rd1 {[%emt 0:00:15]} Nf4 {[%emt 0:00:06]} 31. Ne5 {[%emt 0:00:10]} Nxg2 {[%emt 0:00:08]} 32. Nf3 {[%emt 0:00:11]} Ne3+ {[%emt 0:00:03]} 33. Ke1 {[%emt 0:00:04]} Nxd1 {[%emt 0:00:04]} 34. Kxd1 {[%emt 0:00:01]} Rxa2 {[%emt 0:00:02]} 35. Nd2 {[%emt 0:00:03]} Rxd2+ {[%emt 0:00:03]} 36. Kxd2 {[%emt 0:00:02]} e5 {[%emt 0:00:02]} 37. Kd3 {[%emt 0:00:01]} f5 {[%emt 0:00:01]} 0-1

[Event "Queens Festival Final Team 2022"]
[Site "Tornelo"]
[Date "2022.06.26"]
[Round "6.1"]
[White "Subramanian, Anusha"]
[Black "Shriyan santosh Priyasha"]
[Result "1/2-1/2"]
[ECO "B06"]
[WhiteElo "1671"]
[BlackElo "1597"]
[Annotator "NA RC"]
[PlyCount "129"]
[EventDate "2022.06.24"]
[EventType "team-tourn"]
[EventCountry "NET"]
[SourceTitle "playchess.com"]
[Source "ChessBase"]
[SourceQuality "1"]
[WhiteTeam "England"]
[BlackTeam "MAW"]
[WhiteTeamCountry "ENG"]
[TimeControl "180+2"]

1. e4 {[%emt 0:00:02]} g6 {[%emt 0:00:05]} 2. d4 {[%emt 0:00:03]} Bg7 {[%emt 0:00:02]} 3. Nf3 {[%emt 0:00:01]} d6 {[%emt 0:00:03]} 4. Bd3 {[%emt 0:00:03]} a6 {[%emt 0:00:03]} 5. c4 {[%emt 0:00:01]} Nf6 {[%emt 0:00:06]} 6. Nc3 {[%emt 0:00:02]} O-O {[%emt 0:00:01]} 7. O-O {[%emt 0:00:05]} Re8 {[%emt 0:00:05]} 8. Bg5 {[%emt 0:00:15]} h6 {[%emt 0:00:03]} 9. Be3 {[%emt 0:00:03]} e5 {[%emt 0:00:06]} 10. Qd2 {[%emt 0:00:13]} Ng4 {[%emt 0:00:06]} 11. h3 {[%emt 0:00:22]} Nxe3 {[%emt 0:00:02]} 12. Qxe3 {[%emt 0:00:01]} exd4 {[%emt 0:00:06]} 13. Nxd4 {[%emt 0:00:00]} Nd7 {[%emt 0:00:03]} 14. Rac1 {[%emt 0:00:19]} Nc5 {[%emt 0:00:03]} 15. b4 {[%emt 0:00:10]} Nxd3 {[%emt 0:00:04]} 16. Qxd3 {[%emt 0:00:00]} Bd7 {[%emt 0:00:19]} 17. Rfd1 {[%emt 0:00:03]} Qg5 {[%emt 0:00:06]} 18. Nf3 {[%emt 0:00:05]} Qd8 {[%emt 0:00:05]} 19. c5 {[%emt 0:00:08]} Bc6 {[%emt 0:00:44]} 20. cxd6 {[%emt 0:00:04]} cxd6 {[%emt 0:00:00]} 21. Qxd6 {[%emt 0:00:24]} Qxd6 {[%emt 0:00:04]} 22. Rxd6 {[%emt 0:00:00]} Bxc3 {[%emt 0:00:06]} 23. Rxc3 {[%emt 0:00:05]} Rxe4 {[%emt 0:00:02]} 24. a3 {[%emt 0:00:11]} Rae8 {[%emt 0:00:09]} 25. Nd2 {[%emt 0:00:08]} Re1+ {[%emt 0:00:05]} 26. Kh2 {[%emt 0:00:02]} R8e2 {[%emt 0:00:05]} 27. Kg3 {[%emt 0:00:16]} Rg1 {[%emt 0:00:19]} 28. Nf3 {[%emt 0:00:02]} Rf1 {[%emt 0:00:08]} 29. Nd4 {[%emt 0:00:13]} Ra2 {[%emt 0:00:17]} 30. Nxc6 {[%emt 0:00:08]} bxc6 {[%emt 0:00:00]} 31. Rf6 {[%emt 0:00:06]} Kg7 {[%emt 0:00:07]} 32. Rcxc6 {[%emt 0:00:03]} Rxa3+ {[%emt 0:00:04]} 33. Kh2 {[%emt 0:00:02]} Rb1 {[%emt 0:00:08]} 34. Rxa6 {[%emt 0:00:05]} Rab3 {[%emt 0:00:06]} 35. Rfc6 {[%emt 0:00:08]} Rxb4 {[%emt 0:00:04]} 36. Rc7 {[%emt 0:00:02]} Rb7 {[%emt 0:00:02]} 37. Ra7 {[%emt 0:00:05]} Rxa7 {[%emt 0:00:04]} 38. Rxa7 {[%emt 0:00:02]} Rb2 {[%emt 0:00:01]} 39. Kg3 {[%emt 0:00:02]} Rb3+ {[%emt 0:00:04]} 40. Kg4 {[%emt 0:00:04]} Rb5 {[%emt 0:00:03]} 41. f4 {[%emt 0:00:05]} h5+ {[%emt 0:00:02]} 42. Kf3 {[%emt 0:00:02]} Rb3+ {[%emt 0:00:01]} 43. Kf2 {[%emt 0:00:03]} Rb2+ {[%emt 0:00:02]} 44. Kf3 {[%emt 0:00:04]} Kf6 {[%emt 0:00:01]} 45. Ra6+ {[%emt 0:00:02]} Kg7 {[%emt 0:00:02]} 46. Ra3 {[%emt 0:00:04]} Rb5 {[%emt 0:00:02]} 47. g4 {[%emt 0:00:01]} hxg4+ {[%emt 0:00:01]} 48. hxg4 {[%emt 0:00:04]} Rc5 {[%emt 0:00:01]} 49. Kg3 {[%emt 0:00:01]} Rc1 {[%emt 0:00:03]} 50. Kf3 {[%emt 0:00:03]} Rf1+ {[%emt 0:00:01]} 51. Kg3 {[%emt 0:00:02]} Rc1 {[%emt 0:00:02]} 52. Ra6 {[%emt 0:00:02]} Rc3+ {[%emt 0:00:02]} 53. Kf2 {[%emt 0:00:03]} Rc4 {[%emt 0:00:03]} 54. Kf3 {[%emt 0:00:01]} Rb4 {[%emt 0:00:01]} 55. Ke3 {[%emt 0:00:02]} Kf8 {[%emt 0:00:04]} 56. Ra7 {[%emt 0:00:03]} Kg7 {[%emt 0:00:02]} 57. Ra6 {[%emt 0:00:02]} Rb5 {[%emt 0:00:01]} 58. Ra7 {[%emt 0:00:02]} Rb3+ {[%emt 0:00:02]} 59. Kf2 {[%emt 0:00:03]} Rb2+ {[%emt 0:00:01]} 60. Kf3 {[%emt 0:00:01]} Rb3+ {[%emt 0:00:01]} 61. Kf2 {[%emt 0:00:01]} Rb8 {[%emt 0:00:01]} 62. Kf3 {[%emt 0:00:01]} Kf6 {[%emt 0:00:01]} 63. Ra6+ {[%emt 0:00:02]} Kg7 {[%emt 0:00:03]} 64. Ra7 {[%emt 0:00:02]} Rb3+ {[%emt 0:00:01]} 65. Kf2 {[%emt 0:00:02]} 1/2-1/2

[Event "Queens Festival Final Team 2022"]
[Site "Tornelo"]
[Date "2022.06.26"]
[Round "6.1"]
[White "Posadas, Rayelynn"]
[Black "Nkhoma, Desiderata"]
[Result "1-0"]
[ECO "E65"]
[WhiteElo "1648"]
[BlackElo "1465"]
[Annotator "NA RC"]
[PlyCount "77"]
[EventDate "2022.06.24"]
[EventType "team-tourn"]
[EventCountry "NET"]
[SourceTitle "playchess.com"]
[Source "ChessBase"]
[SourceQuality "1"]
[WhiteTeam "England"]
[BlackTeam "MAW"]
[WhiteTeamCountry "ENG"]
[TimeControl "180+2"]

1. Nf3 {[%emt 0:00:02]} c5 {[%emt 0:00:10]} 2. g3 {[%emt 0:00:02]} d6 {[%emt 0:00:02]} 3. Bg2 {[%emt 0:00:01]} Nf6 {[%emt 0:00:02]} 4. O-O {[%emt 0:00:02]} g6 {[%emt 0:00:02]} 5. d4 {[%emt 0:00:00]} Bg7 {[%emt 0:00:04]} 6. c4 {[%emt 0:00:03]} cxd4 {[%emt 0:00:04]} 7. Nxd4 {[%emt 0:00:02]} O-O {[%emt 0:00:03]} 8. Nc3 {[%emt 0:00:03]} Nc6 {[%emt 0:00:18]} 9. Nxc6 {[%emt 0:00:03]} bxc6 {[%emt 0:00:02]} 10. Bxc6 {[%emt 0:00:01]} Rb8 {[%emt 0:00:03]} 11. Qc2 {[%emt 0:00:28]} Bb7 {[%emt 0:00:03]} 12. Bxb7 {[%emt 0:00:02]} Rxb7 {[%emt 0:00:05]} 13. b3 {[%emt 0:00:01]} e5 {[%emt 0:00:05]} 14. Bb2 {[%emt 0:00:07]} Nh5 {[%emt 0:00:09]} 15. Rfd1 {[%emt 0:00:07]} f5 {[%emt 0:00:04]} 16. Qd2 {[%emt 0:00:09]} Rd7 {[%emt 0:00:14]} 17. Qd5+ {[%emt 0:00:13]} Kh8 {[%emt 0:00:04]} 18. e3 {[%emt 0:00:14]} f4 {[%emt 0:00:11]} 19. Ne4 {[%emt 0:00:35]} fxg3 {[%emt 0:00:24]} 20. hxg3 {[%emt 0:00:03]} Nf6 {[%emt 0:00:15]} 21. Nxf6 {[%emt 0:00:03]} Bxf6 {[%emt 0:00:03]} 22. Kg2 {[%emt 0:00:03]} Bg7 {[%emt 0:00:05]} 23. Rh1 {[%emt 0:00:01]} h5 {[%emt 0:00:06]} 24. Qe4 {[%emt 0:00:11]} Qf6 {[%emt 0:00:03]} 25. Raf1 {[%emt 0:00:04]} Rdf7 {[%emt 0:00:03]} 26. f4 {[%emt 0:00:06]} a6 {[%emt 0:00:09]} 27. Rf2 {[%emt 0:00:28]} Qd8 {[%emt 0:00:11]} 28. Qxg6 {[%emt 0:00:04]} Qa8+ {[%emt 0:00:10]} 29. e4 {[%emt 0:00:09]} Rf6 {[%emt 0:00:12]} 30. Rxh5+ {[%emt 0:00:03]} Kg8 {[%emt 0:00:05]} 31. Qh7+ {[%emt 0:00:01]} Kf7 {[%emt 0:00:05]} 32. Rg5 {[%emt 0:00:21]} Rg8 {[%emt 0:00:08]} 33. fxe5 {[%emt 0:00:09]} Rxf2+ {[%emt 0:00:06]} 34. Kxf2 {[%emt 0:00:01]} Qa7+ {[%emt 0:00:05]} 35. Kf3 {[%emt 0:00:04]} Kf8 {[%emt 0:00:05]} 36. Rf5+ {[%emt 0:00:03]} Ke8 {[%emt 0:00:03]} 37. Qg6+ {[%emt 0:00:01]} Kd8 {[%emt 0:00:05]} 38. Qxd6+ {[%emt 0:00:03]} Qd7 {[%emt 0:00:04]} 39. Qb6+ {[%emt 0:00:01]} 1-0

[Event "Queens Festival Final Team 2022"]
[Site "Tornelo"]
[Date "2022.06.26"]
[Round "6.1"]
[White "Banda Tapiwa"]
[Black "Catabay, Mae Katelyn Rose"]
[Result "0-1"]
[ECO "A34"]
[WhiteElo "1213"]
[BlackElo "1321"]
[Annotator "NA RC"]
[PlyCount "82"]
[EventDate "2022.06.24"]
[EventType "team-tourn"]
[EventCountry "NET"]
[SourceTitle "playchess.com"]
[Source "ChessBase"]
[SourceQuality "1"]
[WhiteTeam "MAW"]
[BlackTeam "England"]
[BlackTeamCountry "ENG"]
[TimeControl "180+2"]

1. e4 {[%emt 0:00:02]} c5 {[%emt 0:00:07]} 2. Nf3 {[%emt 0:00:03]} d6 {[%emt 0:00:01]} 3. c4 {[%emt 0:00:03]} Nc6 {[%emt 0:00:03]} 4. Nc3 {[%emt 0:00:05]} Nf6 {[%emt 0:00:02]} 5. d3 {[%emt 0:00:02]} g6 {[%emt 0:00:02]} 6. Rb1 {[%emt 0:00:07]} Bg7 {[%emt 0:00:02]} 7. Be2 {[%emt 0:00:03]} O-O {[%emt 0:00:03]} 8. O-O {[%emt 0:00:02]} e6 {[%emt 0:00:02]} 9. b3 {[%emt 0:00:03]} d5 {[%emt 0:00:14]} 10. cxd5 {[%emt 0:00:02]} exd5 {[%emt 0:00:02]} 11. e5 {[%emt 0:00:08]} Ng4 {[%emt 0:00:04]} 12. Bf4 {[%emt 0:00:07]} Ngxe5 {[%emt 0:00:04]} 13. Nxe5 {[%emt 0:00:06]} Nxe5 {[%emt 0:00:02]} 14. Qd2 {[%emt 0:00:09]} Be6 {[%emt 0:00:09]} 15. Bh6 {[%emt 0:00:02]} Bxh6 {[%emt 0:00:14]} 16. Qxh6 {[%emt 0:00:03]} Qf6 {[%emt 0:00:05]} 17. Qe3 {[%emt 0:00:08]} d4 {[%emt 0:00:04]} 18. Ne4 {[%emt 0:00:03]} dxe3 {[%emt 0:00:10]} 19. Nxf6+ {[%emt 0:00:02]} Kg7 {[%emt 0:00:01]} 20. Ne4 {[%emt 0:00:04]} exf2+ {[%emt 0:00:02]} 21. Rxf2 {[%emt 0:00:02]} b6 {[%emt 0:00:03]} 22. Rbf1 {[%emt 0:00:03]} Rad8 {[%emt 0:00:06]} 23. g3 {[%emt 0:00:15]} Nxd3 {[%emt 0:00:10]} 24. Bxd3 {[%emt 0:00:04]} Rxd3 {[%emt 0:00:02]} 25. Ng5 {[%emt 0:00:02]} Bd5 {[%emt 0:00:19]} 26. Re1 {[%emt 0:00:20]} h6 {[%emt 0:00:07]} 27. Nh3 {[%emt 0:00:03]} g5 {[%emt 0:00:06]} 28. Rf5 {[%emt 0:00:10]} Be6 {[%emt 0:00:06]} 29. Ref1 {[%emt 0:00:11]} Bxf5 {[%emt 0:00:07]} 30. Rxf5 {[%emt 0:00:02]} Kg6 {[%emt 0:00:09]} 31. Rf2 {[%emt 0:00:03]} f5 {[%emt 0:00:04]} 32. Kg2 {[%emt 0:00:04]} Rfd8 {[%emt 0:00:03]} 33. Ng1 {[%emt 0:00:03]} Rd2 {[%emt 0:00:02]} 34. Nf3 {[%emt 0:00:02]} Rxf2+ {[%emt 0:00:02]} 35. Kxf2 {[%emt 0:00:02]} Kf6 {[%emt 0:00:01]} 36. h3 {[%emt 0:00:02]} h5 {[%emt 0:00:03]} 37. a4 {[%emt 0:00:12]} g4 {[%emt 0:00:02]} 38. hxg4 {[%emt 0:00:06]} hxg4 {[%emt 0:00:02]} 39. Ne1 {[%emt 0:00:06]} Rd2+ {[%emt 0:00:04]} 40. Ke3 {[%emt 0:00:02]} Rb2 {[%emt 0:00:02]} 41. Kd3 {[%emt 0:00:07]} Rxb3+ {[%emt 0:00:02]} 0-1

[Event "Queens Festival Final Team 2022"]
[Site "Tornelo"]
[Date "2022.06.26"]
[Round "6.2"]
[White "Ismayil, Malak"]
[Black "Marape, Naledi"]
[Result "1-0"]
[ECO "B52"]
[WhiteElo "2001"]
[BlackElo "1707"]
[Annotator "NA RC"]
[PlyCount "39"]
[EventDate "2022.06.24"]
[EventType "team-tourn"]
[EventCountry "NET"]
[SourceTitle "playchess.com"]
[Source "ChessBase"]
[SourceQuality "1"]
[WhiteTeam "Azerbaijan"]
[BlackTeam "Botswana"]
[WhiteTeamCountry "AZE"]
[BlackTeamCountry "BOT"]
[TimeControl "180+2"]

1. e4 {[%emt 0:00:02]} c5 {[%emt 0:00:09]} 2. Nf3 {[%emt 0:00:02]} d6 {[%emt 0:00:05]} 3. Bb5+ {[%emt 0:00:02]} Bd7 {[%emt 0:00:04]} 4. Bxd7+ {[%emt 0:00:02]} Nxd7 {[%emt 0:00:06]} 5. O-O {[%emt 0:00:02]} Ngf6 {[%emt 0:00:05]} 6. Re1 {[%emt 0:00:01]} g6 {[%emt 0:00:04]} 7. d4 {[%emt 0:00:04]} cxd4 {[%emt 0:00:04]} 8. Nxd4 {[%emt 0:00:01]} Bg7 {[%emt 0:00:03]} 9. Nc3 {[%emt 0:00:06]} O-O {[%emt 0:00:05]} 10. Bg5 {[%emt 0:00:02]} Rc8 {[%emt 0:00:04]} 11. Qd2 {[%emt 0:00:04]} a6 {[%emt 0:00:04]} 12. h3 {[%emt 0:00:02]} b5 {[%emt 0:00:05]} 13. a3 {[%emt 0:00:01]} Qb6 {[%emt 0:00:03]} 14. Rad1 {[%emt 0:00:05]} Rc4 {[%emt 0:00:05]} 15. Nb3 {[%emt 0:00:05]} b4 {[%emt 0:00:08]} 16. axb4 {[%emt 0:00:05]} Qxb4 {[%emt 0:00:12]} 17. Qd3 {[%emt 0:00:34]} a5 {[%emt 0:00:09]} 18. Bd2 {[%emt 0:00:19]} a4 {[%emt 0:00:09]} 19. Nd5 {[%emt 0:00:04]} Qc5 {[%emt 0:00:16]} 20. Nxc5 {[%emt 0:00:04]} 1-0

[Event "Queens Festival Final Team 2022"]
[Site "Tornelo"]
[Date "2022.06.26"]
[Round "6.2"]
[White "Khalilova, Khadija"]
[Black "Francis, Onkemetse"]
[Result "1-0"]
[ECO "C10"]
[WhiteElo "1777"]
[BlackElo "1777"]
[Annotator "NA RC"]
[PlyCount "55"]
[EventDate "2022.06.24"]
[EventType "team-tourn"]
[EventCountry "NET"]
[SourceTitle "playchess.com"]
[Source "ChessBase"]
[SourceQuality "1"]
[WhiteTeam "Azerbaijan"]
[BlackTeam "Botswana"]
[WhiteTeamCountry "AZE"]
[BlackTeamCountry "BOT"]
[TimeControl "180+2"]

1. e4 {[%emt 0:00:02]} e6 {[%emt 0:00:06]} 2. d4 {[%emt 0:00:03]} d5 {[%emt 0:00:02]} 3. Nd2 {[%emt 0:00:02]} dxe4 {[%emt 0:00:06]} 4. Nxe4 {[%emt 0:00:02]} Nf6 {[%emt 0:00:01]} 5. Ng3 {[%emt 0:00:05]} Be7 {[%emt 0:00:02]} 6. Nf3 {[%emt 0:00:02]} O-O {[%emt 0:00:02]} 7. Bd3 {[%emt 0:00:02]} c5 {[%emt 0:00:03]} 8. O-O {[%emt 0:00:09]} Nc6 {[%emt 0:00:03]} 9. dxc5 {[%emt 0:00:02]} Bxc5 {[%emt 0:00:03]} 10. c3 {[%emt 0:00:02]} h6 {[%emt 0:00:03]} 11. Qe2 {[%emt 0:00:02]} b6 {[%emt 0:00:10]} 12. Ne4 {[%emt 0:00:04]} Nxe4 {[%emt 0:00:05]} 13. Qxe4 {[%emt 0:00:02]} g6 {[%emt 0:00:10]} 14. Bxh6 {[%emt 0:00:06]} Bb7 {[%emt 0:00:11]} 15. Qe2 {[%emt 0:00:07]} Re8 {[%emt 0:00:07]} 16. Rad1 {[%emt 0:00:03]} Qf6 {[%emt 0:00:08]} 17. Bg5 {[%emt 0:00:08]} Qg7 {[%emt 0:00:03]} 18. Bb5 {[%emt 0:00:08]} a6 {[%emt 0:00:10]} 19. Bc4 {[%emt 0:00:17]} b5 {[%emt 0:00:06]} 20. Bd3 {[%emt 0:00:04]} Be7 {[%emt 0:00:07]} 21. Bf4 {[%emt 0:00:08]} Rad8 {[%emt 0:00:08]} 22. Be4 {[%emt 0:00:13]} Bf6 {[%emt 0:00:18]} 23. h3 {[%emt 0:00:14]} Qf8 {[%emt 0:00:03]} 24. Qe3 {[%emt 0:00:05]} Bg7 {[%emt 0:00:05]} 25. Qb6 {[%emt 0:00:07]} Qe7 {[%emt 0:00:32]} 26. Bxc6 {[%emt 0:00:04]} Bxc6 {[%emt 0:00:04]} 27. Qxc6 {[%emt 0:00:03]} Rxd1 {[%emt 0:00:02]} 28. Rxd1 {[%emt 0:00:02]} 1-0

[Event "Queens Festival Final Team 2022"]
[Site "Tornelo"]
[Date "2022.06.26"]
[Round "6.2"]
[White "Banda Natalie Katlo"]
[Black "Bakhshizada, Asnad"]
[Result "0-1"]
[ECO "D04"]
[WhiteElo "1629"]
[BlackElo "1052"]
[Annotator "NA RC"]
[PlyCount "94"]
[EventDate "2022.06.24"]
[EventType "team-tourn"]
[EventCountry "NET"]
[SourceTitle "playchess.com"]
[Source "ChessBase"]
[SourceQuality "1"]
[WhiteTeam "Botswana"]
[BlackTeam "Azerbaijan"]
[WhiteTeamCountry "BOT"]
[BlackTeamCountry "AZE"]
[TimeControl "180+2"]

1. d4 {[%emt 0:00:02]} d5 {[%emt 0:00:06]} 2. Nf3 {[%emt 0:00:03]} Nf6 {[%emt 0:00:04]} 3. e3 {[%emt 0:00:02]} Bf5 {[%emt 0:00:02]} 4. Bd3 {[%emt 0:00:03]} Bxd3 {[%emt 0:00:03]} 5. Qxd3 {[%emt 0:00:06]} e6 {[%emt 0:00:02]} 6. Qb5+ {[%emt 0:00:08]} Nbd7 {[%emt 0:00:04]} 7. Qxb7 {[%emt 0:00:04]} Bd6 {[%emt 0:00:03]} 8. Qa6 {[%emt 0:00:10]} O-O {[%emt 0:00:03]} 9. Qd3 {[%emt 0:00:07]} Ne4 {[%emt 0:00:04]} 10. Nc3 {[%emt 0:00:05]} Ndf6 {[%emt 0:00:04]} 11. Ne5 {[%emt 0:00:06]} c5 {[%emt 0:00:07]} 12. f3 {[%emt 0:00:06]} c4 {[%emt 0:00:15]} 13. Qe2 {[%emt 0:00:07]} Nxc3 {[%emt 0:00:07]} 14. bxc3 {[%emt 0:00:02]} Qc7 {[%emt 0:00:14]} 15. f4 {[%emt 0:00:06]} Ne4 {[%emt 0:00:03]} 16. Bd2 {[%emt 0:00:18]} Qa5 {[%emt 0:00:04]} 17. Nc6 {[%emt 0:00:17]} Qb6 {[%emt 0:00:11]} 18. Ne5 {[%emt 0:00:18]} Qb2 {[%emt 0:00:04]} 19. Qd1 {[%emt 0:00:14]} Nxc3 {[%emt 0:00:06]} 20. Bxc3 {[%emt 0:00:07]} Qxc3+ {[%emt 0:00:03]} 21. Ke2 {[%emt 0:00:03]} Bxe5 {[%emt 0:00:18]} 22. fxe5 {[%emt 0:00:10]} Rab8 {[%emt 0:00:02]} 23. Qd2 {[%emt 0:00:05]} Qxd2+ {[%emt 0:00:05]} 24. Kxd2 {[%emt 0:00:03]} Rfc8 {[%emt 0:00:04]} 25. c3 {[%emt 0:00:02]} Rb2+ {[%emt 0:00:02]} 26. Kd1 {[%emt 0:00:11]} Rxg2 {[%emt 0:00:02]} 27. h3 {[%emt 0:00:13]} Rb8 {[%emt 0:00:05]} 28. Kc1 {[%emt 0:00:12]} h6 {[%emt 0:00:02]} 29. Rb1 {[%emt 0:00:07]} Rxb1+ {[%emt 0:00:05]} 30. Kxb1 {[%emt 0:00:02]} Re2 {[%emt 0:00:02]} 31. a4 {[%emt 0:00:14]} Rxe3 {[%emt 0:00:02]} 32. Kb2 {[%emt 0:00:02]} Re2+ {[%emt 0:00:01]} 33. Ka3 {[%emt 0:00:02]} a5 {[%emt 0:00:07]} 34. Rb1 {[%emt 0:00:04]} Rc2 {[%emt 0:00:03]} 35. Rb8+ {[%emt 0:00:05]} Kh7 {[%emt 0:00:03]} 36. Rb5 {[%emt 0:00:02]} Rxc3+ {[%emt 0:00:02]} 37. Kb2 {[%emt 0:00:02]} Rb3+ {[%emt 0:00:11]} 38. Kc2 {[%emt 0:00:03]} Rxh3 {[%emt 0:00:08]} 39. Rxa5 {[%emt 0:00:03]} g5 {[%emt 0:00:05]} 40. Ra7 {[%emt 0:00:02]} Ra3 {[%emt 0:00:03]} 41. a5 {[%emt 0:00:02]} g4 {[%emt 0:00:03]} 42. Rxf7+ {[%emt 0:00:02]} Kg6 {[%emt 0:00:02]} 43. Ra7 {[%emt 0:00:04]} g3 {[%emt 0:00:03]} 44. a6 {[%emt 0:00:01]} g2 {[%emt 0:00:02]} 45. Re7 {[%emt 0:00:03]} g1=Q {[%emt 0:00:03]} 46. Rxe6+ {[%emt 0:00:02]} Kf7 {[%emt 0:00:04]} 47. Rg6 {[%emt 0:00:02]} Qxg6+ {[%emt 0:00:03]} 0-1

[Event "Queens Festival Final Team 2022"]
[Site "Tornelo"]
[Date "2022.06.26"]
[Round "6.2"]
[White "Moshoboro Arona"]
[Black "Mammadova, Aysel"]
[Result "0-1"]
[ECO "E20"]
[WhiteElo "1555"]
[BlackElo "1893"]
[Annotator "NA RC"]
[PlyCount "70"]
[EventDate "2022.06.24"]
[EventType "team-tourn"]
[EventCountry "NET"]
[SourceTitle "playchess.com"]
[Source "ChessBase"]
[SourceQuality "1"]
[WhiteTeam "Botswana"]
[BlackTeam "Azerbaijan"]
[WhiteTeamCountry "BOT"]
[BlackTeamCountry "AZE"]
[TimeControl "180+2"]

1. d4 {[%emt 0:00:02]} Nf6 {[%emt 0:00:04]} 2. c4 {[%emt 0:00:05]} e6 {[%emt 0:00:02]} 3. Nc3 {[%emt 0:00:02]} Bb4 {[%emt 0:00:03]} 4. Bd2 {[%emt 0:00:09]} O-O {[%emt 0:00:03]} 5. a3 {[%emt 0:00:08]} Bxc3 {[%emt 0:00:02]} 6. Bxc3 {[%emt 0:00:02]} Ne4 {[%emt 0:00:02]} 7. Bd2 {[%emt 0:00:08]} b6 {[%emt 0:00:05]} 8. e3 {[%emt 0:00:02]} Bb7 {[%emt 0:00:02]} 9. Nf3 {[%emt 0:00:03]} d6 {[%emt 0:00:02]} 10. Bd3 {[%emt 0:00:02]} Nd7 {[%emt 0:00:03]} 11. O-O {[%emt 0:00:03]} f5 {[%emt 0:00:04]} 12. Qe2 {[%emt 0:00:08]} Ndf6 {[%emt 0:00:03]} 13. Rac1 {[%emt 0:00:05]} c5 {[%emt 0:00:04]} 14. Rfd1 {[%emt 0:00:09]} Qe8 {[%emt 0:00:08]} 15. Bc3 {[%emt 0:00:17]} Qg6 {[%emt 0:00:09]} 16. Bc2 {[%emt 0:00:15]} Nxc3 {[%emt 0:00:02]} 17. bxc3 {[%emt 0:00:03]} Ne4 {[%emt 0:00:03]} 18. Qd3 {[%emt 0:00:13]} Nxc3 {[%emt 0:00:09]} 19. Nh4 {[%emt 0:00:08]} Qg4 {[%emt 0:00:08]} 20. g3 {[%emt 0:00:06]} Ne2+ {[%emt 0:00:05]} 21. Kf1 {[%emt 0:00:20]} Nxc1 {[%emt 0:00:03]} 22. Rxc1 {[%emt 0:00:07]} Qh3+ {[%emt 0:00:03]} 23. Ke2 {[%emt 0:00:04]} g5 {[%emt 0:00:02]} 24. Nf3 {[%emt 0:00:04]} Qg4 {[%emt 0:00:02]} 25. d5 {[%emt 0:00:09]} exd5 {[%emt 0:00:07]} 26. cxd5 {[%emt 0:00:03]} a5 {[%emt 0:00:05]} 27. Bb3 {[%emt 0:00:10]} Ba6 {[%emt 0:00:19]} 28. Bc4 {[%emt 0:00:03]} b5 {[%emt 0:00:12]} 29. Bxb5 {[%emt 0:00:02]} Bxb5 {[%emt 0:00:04]} 30. Qxb5 {[%emt 0:00:02]} Rab8 {[%emt 0:00:03]} 31. Qd7 {[%emt 0:00:18]} Rb2+ {[%emt 0:00:04]} 32. Ke1 {[%emt 0:00:14]} Qxf3 {[%emt 0:00:04]} 33. Qe6+ {[%emt 0:00:02]} Rf7 {[%emt 0:00:01]} 34. Qe8+ {[%emt 0:00:03]} Kg7 {[%emt 0:00:02]} 35. Qa4 {[%emt 0:00:12]} Qe2# {[%emt 0:00:06]} 0-1